Cogmind - Beta 9.1 @@@ ROGUE MODE // 2019.11.02 @ 00:31:37 Player: MrPainting Result: Destroyed by YI-UF0 with YI-UF0's Doublenader Performance ------------- Evolutions (0) 0 Regions Visited (2) 400 Robots Destroyed (45) 225 Value Destroyed (584) 584 Prototype IDs (0) 0 Alien Tech Used (0) 0 Bonus (-87) -87 TOTAL SCORE: 1122 Bonus ------- Friendly Fire -87 Cogmind --------- Core Integrity 0/250 Matter 109/300 Energy 100/100 System Corruption 1% Temperature Cool (0) Location -10/Mines Parts ------- Power (1) Propulsion (2) Utility (2) Large Storage Unit Weapon Shielding Weapon (2) Shotgun Inventory (10) Flight Unit Heat Shielding Improved Heat Sink Improved Heat Sink Large Storage Unit High-capacity Matter Pod (105) Structural Scanner High-powered Tractor Beam Shotgun Shotgun Peak State ------------ Power Light Nuclear Core Propulsion Aluminum Leg Aluminum Leg Utility Large Storage Unit Weapon Shielding Weapon Shotgun Shotgun Inventory Hover Unit Hover Unit Improved Heat Sink Large Storage Unit High-capacity Matter Pod ECM Suite High-powered Tractor Beam EM Pulse Gun Shotgun Shotgun [Rating: 12] Favorites ----------- Power Ion Engine Engine Ion Engine Power Core Light Nuclear Core Propulsion Aluminum Leg Leg Aluminum Leg Hover Unit Hover Unit Flight Unit Flight Unit Utility Large Storage Unit Device ECM Suite Storage Large Storage Unit Protection Weapon Shielding Weapon Shotgun Energy Gun Small Laser Ballistic Gun Shotgun Launcher Rocket Launcher Build | -11 -10 -10 ------- Run | Scr Mat Min Slots Evolved . | . . . Power . | . . . Propulsion . | . . . Utility . | . . . Weapon . | . . . Parts Attached 29 | 3 17 9 Power 5 | 1 4 . Engine 4 | 1 3 . Core 1 | . 1 . Reactor . | . . . Propulsion 5 | . 2 3 Treads . | . . . Leg 2 | . 2 . Wheel . | . . . Hover 2 | . . 2 Flight 1 | . . 1 Utility 6 | . 5 1 Device 1 | . 1 . Storage 3 | . 3 . Processor . | . . . Hackware . | . . . Protection 2 | . 1 1 Artifact . | . . . Weapon 13 | 2 6 5 Energy Gun 4 | 1 3 . Energy Cannon . | . . . Ballistic Gun 5 | 1 3 1 Ballistic Cannon . | . . . Launcher 4 | . . 4 Special Weapon . | . . . Impact Weapon . | . . . Slashing Weapon . | . . . Piercing Weapon . | . . . Special Melee Weapon . | . . . Unidentified Prototypes . | . . . Parts Lost 8 | . . 8 Power 1 | . . 1 Propulsion 4 | . . 4 Utility . | . . . Weapon 3 | . . 3 Highest Loss Streak 4 | . . 4 Average Slot Usage (%) 92 | . 97 85 Engine 6 | . 7 4 Core 3 | . 6 . Leg 19 | . 26 8 Hover 3 | . . 8 Flight 3 | . . 9 Device 1 | . 2 . Storage 21 | . 16 27 Protection 4 | . 7 . Energy Gun 5 | . 8 . Ballistic Gun 17 | . 19 14 Launcher 3 | . . 9 Naked Turns . | . . . Heaviest Build 44 | 3 43 44 Greatest Support 20 | 3 20 20 Greatest Overweight (x) 11 | . 2 11 Average Overweight (x) 1 | . 1 3 Largest Inventory Capacity 16 | 4 16 16 Average Capacity 13 | 4 11 15 Most Carried 16 | 4 15 16 Average Carried 11 | 2 9 14 Final Capacity 16 | 4 16 10 Final Carried 15 | 4 15 10 Class Distribution -------------------- 100% | Mutant Dominant Class ---------------- Mutant | -10/Materials Mutant | -10/Mines Resources | -11 -10 -10 ----------- Run | Scr Mat Min Matter Collected 875 | 230 508 137 Remotely . | . . . Salvage Created 767 | . 591 176 Parts 63 | . 37 26 Haulers Intercepted 1 | . 1 . Recyclers Shooed 4 | . 4 . Parts Field Recycled . | . . . Retrieved Matter . | . . . Parts Self-Destructed . | . . . Prevented . | . . . Kills | -11 -10 -10 ------- Run | Scr Mat Min Combat Hostiles Destroyed 36 | . 13 23 Guns 13 | . 13 . AOE 23 | . . 23 Classes Destroyed 8 | . 7 1 Worker 3 | . 1 2 Hauler 1 | . 1 . Recycler 3 | . 1 2 Operator 1 | . 1 . Watcher 1 | . 1 . Swarmer 11 | . 3 8 Grunt 10 | . 10 . Assembled 15 | . . 15 Best Kill Streak 16 | . 4 16 Combat Bots Only 15 | . 4 15 Max Kills in Single Turn 5 | . 2 5 Gunslinging 1 | . 1 . Exploded 5 | . . 5 Melee . | . . . Uniques/NPCs Destroyed . | . . . Combat | -11 -10 -10 -------- Run | Scr Mat Min Damage Taken 1498 | . 550 948 Core 260 | . 99 161 Absorbed by Shields . | . . . Core Remaining (%) 100 | 100 . . Volleys Fired 76 | . 63 13 Largest 2 | . 2 2 Hottest 85 | . 85 60 Shots Fired 141 | . 123 18 Gun 124 | . 123 1 Cannon . | . . . Launcher 17 | . . 17 Special . | . . . Kinetic 92 | . 91 1 Thermal 28 | . 28 . Explosive 17 | . . 17 Electromagnetic 4 | . 4 . Robot Hit Streak 6 | . 6 3 Robot Miss Streak 6 | . 6 3 Penetration Max . | . . . Secondary Targets 3 | . 3 . Max Gunslinging Chain 1 | . 1 . Shots Hit Robots 80 | . 73 7 Core Hits 75 | . 35 40 Critical Hits . | . . . Critical Kills . | . . . Critical Parts Destroyed . | . . . Melee Attacks . | . . . Impact . | . . . Slashing . | . . . Piercing . | . . . Sneak Attacks . | . . . Combat Hostiles . | . . . Follow-up Attacks . | . . . Damage Inflicted 2571 | . 1045 1526 Guns 1057 | . 1045 12 Cannons . | . . . Explosions 1514 | . . 1514 Melee . | . . . Ramming . | . . . Kinetic 868 | . 856 12 Thermal 283 | . 189 94 Explosive 1420 | . . 1420 Electromagnetic . | . . . Impact . | . . . Slashing . | . . . Piercing . | . . . Highest Corruption 1 | . . 1 Average Corruption 1 | . . 1 Corruption Purged . | . . . Effects 2 | . . 2 Message Errors 1 | . . 1 Data Loss (minor) 1 | . . 1 Overload Shots . | . . . Overflow Damage 47 | . . 47 Projectiles . | . . . Explosions 47 | . . 47 Melee . | . . . Knockbacks . | . . . Impact . | . . . Kinetic . | . . . Secondary . | . . . Self-Inflicted Damage 132 | . . 132 Shots 6 | . . 6 Rammed . | . . . Targets Rammed . | . . . Kicked . | . . . Crushed . | . . . Highest Temperature 214 | . 214 15 Average Temperature 63 | . 64 10 Received Heat Transfer 310 | . 270 40 Siege Activations . | . . . Robots Corrupted . | . . . Combat Hostiles . | . . . Parts Fried . | . . . Impact Corruptions . | . . . Robots Melted . | . . . Combat Hostiles . | . . . Parts Melted 1 | . 1 . Heat Transferred 583 | . 433 150 Parts Sabotaged . | . . . Parts Stolen . | . . . Parts Stripped . | . . . Power Chain Reactions . | . . . Missiles Intercepted . | . . . Alert | -11 -10 -10 ------- Run | Scr Mat Min Peak Influence 210 | . 210 137 Average Influence 70 | . 72 71 Maximum Alert Level 1 | . 1 . Low Security (%) 98 | . . . Level 1 1 | . . . Level 2 . | . . . Level 3 . | . . . Level 4 . | . . . Level 5 . | . . . High Security . | . . . Max Security . | . . . Squads Dispatched 2 | . 2 . Investigation 1 | . 1 . Extermination . | . . . Reinforcement 1 | . 1 . Assault . | . . . Garrison . | . . . Intercept . | . . . Construction Impeded . | . . . Haulers Reinforced . | . . . Stealth | -11 -10 -10 --------- Run | Scr Mat Min Distress Signals 1 | . 1 . Communications Jammed . | . . . Distress Signals . | . . . Times Spotted 58 | . 30 28 Peak Tracking Total 12 | . 6 12 Tactical Retreats 2 | . 2 . Traps | -11 -10 -10 ------- Run | Scr Mat Min Traps Triggered 2 | . 2 . Indirectly . | . . . Trap Hack Attempts . | . . . Triggered . | . . . Disarmed . | . . . Reprogrammed . | . . . Reused . | . . . Traps Extracted . | . . . Installed . | . . . Triggered . | . . . Machines | -11 -10 -10 ---------- Run | Scr Mat Min Machines Disabled 4 | . 1 3 Max in Single Turn 2 | . 1 2 Machines Sabotaged . | . . . Garrisons Compromised . | . . . Overloaded Fab Kills . | . . . Fab Network Shutdowns . | . . . Hacking | -11 -10 -10 --------- Run | Scr Mat Min Machines Accessed 1 | . 1 . Terminals . | . . . Fabricators . | . . . Repair Stations . | . . . Recycling Units 1 | . 1 . Scanalyzers . | . . . Garrison Access . | . . . Total Hacks 1 | . 1 . Successful 1 | . 1 . Failed . | . . . Catastrophic . | . . . Database Lockouts . | . . . Manual . | . . . Terminals . | . . . Fabricators . | . . . Repair Stations . | . . . Recycling Units 1 | . 1 . Scanalyzers . | . . . Garrison Access . | . . . Terminal Hacks . | . . . Fabricator Hacks . | . . . Repair Station Hacks . | . . . Recycling Unit Hacks 1 | . 1 . Retrieve Components 1 | . 1 . Scanalyzer . | . . . Garrison Access Hacks . | . . . Unauthorized Hacks . | . . . Terminals . | . . . Fabricators . | . . . Repair Stations . | . . . Recycling Units . | . . . Scanalyzers . | . . . Garrison Access . | . . . Data Cores Recovered . | . . . Used . | . . . Hacking Detections . | . . . Full Trace Events . | . . . Feedback Events . | . . . Feedback Blocked . | . . . Robot Schematics Acquired . | . . . Robots Built . | . . . Matter . | . . . Time . | . . . Total Robot Build Rating . | . . . Part Schematics Acquired . | . . . Parts Built . | . . . Matter . | . . . Time . | . . . Total Part Build Rating . | . . . Parts Repaired . | . . . Time . | . . . Parts Recycled . | . . . Recycled Matter . | . . . Retrieved Matter . | . . . Retrieved Components 1 | . 1 . Parts Scanalyzed . | . . . Part Schematics Acquired . | . . . Parts Damaged . | . . . Bothacking | -11 -10 -10 ------------ Run | Scr Mat Min Used RIF Installer . | . . . Robots Hacked . | . . . Non-combat . | . . . Combat . | . . . Robot Hacks Applied . | . . . Relay Couplers Released . | . . . Robots Rewired . | . . . Allies Hacked . | . . . Hacks Repelled . | . . . Allies | -11 -10 -10 -------- Run | Scr Mat Min Total Allies . | . . . Largest Group . | . . . Highest-Rated Group . | . . . Highest-Rated Ally . | . . . Total Orders . | . . . Ally Attacks . | . . . Total Damage . | . . . Kills . | . . . Allies Corrupted . | . . . Allies Melted . | . . . Intel | -11 -10 -10 ------- Run | Scr Mat Min Robot Analysis Total . | . . . Derelict Logs Recovered 2 | . . 2 Drone Launches . | . . . Drone Recoveries . | . . . Exploration | -11 -10 -10 ------------- Run | Scr Mat Min Turns Passed 1964 | 37 1139 788 Spaces Moved 902 | 49 596 257 Core 108 | 49 53 6 Treads . | . . . Legs 676 | . 543 133 Wheels . | . . . Hover 118 | . . 118 Flight . | . . . Fastest Speed 50 | 50 50 180 Average Speed 182 | 50 147 288 Slowest Speed 600 | 50 180 600 Overloaded Moves . | . . . Propulsion Burnouts . | . . . Robots Hopped . | . . . Cave-ins Triggered 1 | . . 1 Exploration Rate (%) 40 | 3 61 58 Regions Visited 2 Branch Regions 1 Pre-discovered Areas 1 | . . 1 Known Exits Taken . | . . . Unknown Exits Taken 2 | 1 1 . Scrap Searched 1 | . . 1 Spaces Dug . | . . . Terrain Destroyed 142 | . . 142 Melee . | . . . Projectile . | . . . AOE 142 | . . 142 Actions | -11 -10 -10 --------- Run | Scr Mat Min Total 1081 | 61 737 283 Wait 23 | 3 18 2 Move 900 | 48 595 257 Hop . | . . . Pick Up 35 | 6 27 2 Fast Attach 5 | . 4 1 Attach 10 | 3 4 3 Detach 2 | 1 1 . Swap 14 | . 9 5 Drop 16 | . 16 . Fire 76 | . 63 13 Melee . | . . . Ram . | . . . Kick . | . . . Crush . | . . . Escape Stasis . | . . . Rewire . | . . . Trap . | . . . Miscellaneous . | . . . Route ------- -11/Scrapyard -10/Materials (discovered 2 exits: *Mat / [*Min]) -10/Mines (discovered 1 exit: Mat) History --------- Turn | Location | Event 19 | -11/Scrapyard | Discovered new exit (range 16) 38 | -11/Scrapyard | Entered Materials 304 | -10/Materials | Build established: Mutant 376 | -10/Materials | Discovered new exit (range 12) 953 | -10/Materials | Discovered new exit (range 3) 1177 | -10/Materials | Entered Mines 1184 | -10/Mines | Received a Rocket Launcher from a helpful Derelict 1420 | -10/Mines | Assembled infested the area 1425 | -10/Mines | Assisted by a Guerilla fighting off Assembled 1440 | -10/Mines | Core integrity fell below 50% 1453 | -10/Mines | Crushed by falling debris 1453 | -10/Mines | Core integrity fell below 20% 1475 | -10/Mines | Destroyed 15 combat bots 1485 | -10/Mines | Lost 4 parts (1p1n2w) 1868 | -10/Mines | Identified exit to Materials 1965 | -10/Mines | Destroyed by YI-UF0 with YI-UF0's Doublenader Last Messages --------------- 01845_ S-10 Pest destroyed. 01847_ T-07 Excavator is excavating. 01868_ Acquired derelict log, extracted data. 01869_ T-07 Excavator is excavating. 01918_ R-06 Scavenger destroyed. 01927_ The unstable cave ceiling collapses. 01929_ Acquired Flight Unit. 01938_ Acquired 3 matter. 01948_ The unstable cave ceiling collapses. 01952_ Hover Unit destroyed. 01954_ Rocket Launcher destroyed. 01956_ Hover Unit destroyed. 01957_ The unstable cave ceiling collapses. 01961_ YI-UF0: "BLAM!" 01961_ T-07 Excavator destroyed. 01961_ U-05 Engineer destroyed. 01961_ T-07 Excavator destroyed. 01962_ The unstable cave ceiling collapses. 01963_ R-06 Scavenger destroyed. 01964_ The unstable cave ceiling collapses. Map ----- +----------------------------------------------------+ | ## # #?## ??????????????????? | | # ##??# ??????????????????? | | ## ###?## # # ???????????????????? | | #?## ### ## #????????????????????????? | | ??# ##### ##### #????????????????????????? | | ??## ##?# #???# #????????????????????????? | | ???## ### #???# #????????????????????????? | | ???## " ## #???# #?####???????????????????? | | #### ## ##### ### ##??????????????????? | | ## !! #??????????????????? | | ######### #??????????????????? | | ######## #??????# * #??????????????????? | | ???????## #???### =%! #??????????????????? | | ????????###### ##???? # #??????????????????? | | ?????????????####????? = ##?###?????????????? | | ?????????????????????? [ ## ########## #?? | | ?????????????????????## % #?? | | ?????????????????????# # ! g #? | | ?????????????????????# % ######### #? | | ?????????????????????# # #??????????###? | | ?????????????????????# #?# #?????????????? | | ?????????????????????# #??# ?????????????? | | ?????????????????????# ###?# ?????????????? | | ?????????????????????# #?# #?????????????? | | ?????????????????????# ##? # ?????????????? | | ?????????????????????## @ #?? ?#?????????????? | | ??????????????????????# #?? ???????????????? | | ????????????????????? ## ##?? ???????????????? | | ??????????????????? ##?##??? ???????????????? | | ????????????????? ???????? ???????????????? | | ??????????????? """ ???????? ???????????????? | | ?????????????# """ ???????? ???????????????? | | ????????????? """ #????????????????????????? | | ????????????? ? #?????????????????????????? | | ????????????? ?????###??????????????????????????? | | ?????????????????????????????????????????????????? | | ?????????????????????????????????????????????????? | | ?????????????????????????????????????????????????? | | ?????????????????????????????????????????????????? | | ?????????????????????????????????????????????????? | | ?????????????????????????????????????????????????? | | | | | | | | | | | | | | | | | | | +----------------------------------------------------+ Best States ------------- Heat Dissipation 25 Energy Generation 14 Energy Capacity 250 Matter Stores 300 Matter Capacity 300 Sight Range 16 Terrain Scan Density 10 ECM Strength 1 Weapon Shielding 33 Evasion (%) 50 Item Schematics ----------------- None Robot Schematics ------------------ None Fabricated ------------ Nothing Alien Tech Used ----------------- None Achievements -------------- None Challenges ------------ None Game ------ Seed XenonLightningThrower Manual? 0 Play Time 00:14:34 Cumulative 93.1 hours Start 2019.11.02 @ 00:17:38 End 2019.11.02 @ 00:31:37 Sessions 1 Manual Loads 0 Difficulty Rogue Special Mode None Game No. 147 Rogue 147 Adventurer 0 Explorer 0 Win Type - Total 0 Types 0/0/0/0/0/0/0 Lore% 31 Gallery% 45 Achievement% 33 Wizard Run 0 Options --------- ASCII 0 Keyboard 0 Movement Mouse Keybinds 0 Fullscreen 1 Font 18/SmallcapsGlow Map View 76x50 Tactical HUD 1 Map Filters NONE Filters NONE Steam 1 RUN: e67f243c-b7cd-40a0-af10-5e881ecabb38